[Event "4NCL Div 2 2024-25"]
[Site "England"]
[Date "2025.02.15"]
[Round "5.13"]
[White "Horton, Jamie A"]
[Black "Paterson, Andrew I"]
[Result "1-0"]
[Annotator "TA"]
[ECO "D31"]
[WhiteElo "2163"]
[BlackElo "1976"]
[PlyCount "99"]
[EventDate "2024.11.23"]
[EventType "team-tourn"]
[EventCountry "ENG"]
[SourceTitle "playchess.com"]
[Source "ChessBase"]
[SourceQuality "1"]
[TimeControl "40/6000+30:3000+30"]

{[%evp 11,99,20,20,0,14,14,12,6,25,12,25,14,17,13,20,12,18,20,16,18,30,25,29,29,40,23,29,27,18,7,10,0,0,0,8,0,0,0,11,8,10,-21,-9,-10,-13,-16,-17,-22,-17,-22,0,-110,0,0,0,-80,5,6,7,10,205,61,60,77,70,0,42,0,72,75,252,113,118,68,44,11,116,118,379,400,429,426,445,443,443,441,423,417,419,435]} 1. d4 {[%emt 0:10:05]} d5 {[%emt 0:10:11]} 2. c4 {[%emt 0:00:50]} e6 {[%emt 0:00:09]} 3. Nc3 {[%emt 0:03:36]} c6 {[%emt 0:00:15]} 4. cxd5 {[%emt 0:09:23]} exd5 {[%emt 0:00:28]} 5. Bf4 {[%emt 0:02:04]} Bd6 {[%emt 0:01:44]} 6. Bxd6 {[%emt 0:04:37]} Qxd6 {[%emt 0:00:14]} 7. Qc2 {[%emt 0:01:39] D31: Queen's Gambit Declined: Semi-Slav without ...Nf6 (+ Marshall Gambit and Noteboom) and Exchange Variation lines without ...Nf6.} Nf6 {[%emt 0:03:22]} 8. e3 {[%emt 0:03:40]} O-O {[%emt 0:02:08]} 9. Bd3 {[%emt 0:01:59] The position is equal.} Re8 {[%emt 0:00:49]} 10. Nf3 {[%emt 0:14:08]} b6 {[%emt 0:06:16]} 11. h3 {[%emt 0:06:59]} Ba6 {[%emt 0:00:41]} 12. O-O {[%emt 0:00:24]} Bxd3 {[%emt 0:00:25]} 13. Qxd3 {[%emt 0:00:02]} Nbd7 {[%emt 0:00:37]} 14. Rac1 {[%emt 0:03:42]} Ne4 {[%emt 0:00:31]} 15. Rc2 {[%emt 0:07:30]} h6 $146 {[%emt 0:39:04]} ({Predecessor:} 15... Nxc3 16. Rxc3 c5 17. dxc5 bxc5 18. Rd1 Nf6 19. Qc2 Rac8 20. b4 Ne4 21. bxc5 Qa6 {½-½ Sorensen,H (2428)-Oksendal,M (2086) Fagernes op 2024 (2)}) 16. Rfc1 {[%emt 0:03:46]} Nxc3 {[%emt 0:00:17]} 17. Rxc3 {[%emt 0:01:57]} c5 {[%emt 0:00:14]} 18. b3 {[%emt 0:02:08]} a5 {[%emt 0:04:14]} 19. Rd1 {[%emt 0:09:17]} Nf6 {[%emt 0:00:50][%cal Bd7f6,Bf6e4,Be4c5][%mdl 32]} 20. Rc2 {[%emt 0:14:25]} a4 {[%emt 0:00:25]} 21. Qb5 {[%emt 0:04:05][%csl LRa4,LRc5][%cal Rd4c5]} axb3 {[%emt 0:03:36]} 22. axb3 {[%emt 0:00:07][%cal Rd4c5]} Ne4 {[%emt 0:01:56]} 23. Qd3 {[%emt 0:04:00]} Red8 {[%emt 0:06:29]} 24. Nd2 {[%emt 0:00:40]} Ra3 {[%emt 0:10:50]} 25. dxc5 {[%emt 0:00:31]} Nxc5 {[%emt 0:00:29]} 26. Qb5 {[%emt 0:00:53][%cal Od2c4]} Qg6 {[%emt 0:02:20]} 27. Rcc1 {[%emt 0:01:00][%cal Bc2c1,Bc1d1,Bd1d8,Bd8d4,Bd4g4][%mdl 32]} d4 {[%emt 0:02:24]} 28. exd4 {[%emt 0:00:30]} Rxd4 {[%emt 0:03:22]} 29. Nf3 {[%emt 0:00:23]} Rxd1+ {[%emt 0:02:00]} (29... Rxb3 $2 30. Qe8+ (30. Nxd4 $2 Rxb5 31. Nxb5 Nd3 $19) 30... Kh7 31. Nxd4 $18) 30. Rxd1 {[%emt 0:00:04]} Rxb3 {[%emt 0:00:28]} 31. Qe8+ {[%emt 0:00:10]} Kh7 {[%emt 0:00:07]} 32. Rd8 $1 {[%emt 0:01:22][%csl Gd8][%cal Re8g8]} Qf6 {[%emt 0:04:05]} (32... Rxf3 33. Qh8#) 33. Qg8+ {[%emt 0:00:12]} Kg6 $132 {[%emt 0:00:07][%mdl 2048] ( -> ...Rb1+) Black is not keeping still} 34. Rd4 $1 {[%emt 0:00:17]} Ne6 {[%emt 0:02:49]} 35. Rg4+ {[%emt 0:00:28]} Kf5 $2 {[%emt 0:02:02] [#]} (35... Ng5 $11 {and Black stays safe.}) 36. Nh4+ {[%emt 0:01:00]} (36. Qh7+ g6 $11) (36. Qa8 $1 $18 {[%csl Gg4][%cal Ra8e4]} Rb1+ 37. Kh2) 36... Ke5 $14 {[%emt 0:00:07]} 37. Qb8+ {[%emt 0:00:24]} Kd5 {[%emt 0:00:19] ...Qa1+ would now be deadly.} 38. Qb7+ {[%emt 0:00:40]} (38. Nf3 $14 Qc3 39. Qb7+ Kd6 40. Qxf7) 38... Kd6 {[%emt 0:01:10]} 39. Nf3 {[%emt 0:00:29] Really sharp!} (39. Rc4 $5) 39... Qc3 {[%emt 0:01:19] Repels Nd2} (39... Qe7 $1 $11 40. Qe4 Qf6) 40. Qxf7 $16 {[%emt 0:00:32] aiming for Rg6. White is more active.} Qc7 $2 {[%emt 0:00:56]} (40... Rb4 $16) 41. Qf5 {[%emt 0:30:21]} (41. Qg6 $18 {has better winning chances.} Qc1+ 42. Kh2 Rxf3 43. gxf3) 41... Qc5 {[%emt 0:20:54] [#]} 42. Qg6 {[%emt 0:00:47]} ({Better is} 42. Qe4 $1 $16) 42... Rb4 $1 $14 {[%emt 0:03:22]} 43. Qd3+ {[%emt 0:09:28]} Kc7 {[%emt 0:00:13]} (43... Ke7 $11 {remains equal.}) 44. Rg6 $16 {[%emt 0:01:17]} Qd6 {[%emt 0:07:05][%mdl 8192]} (44... Qc6 $16) 45. Qf5 $18 {[%emt 0:02:12]} Qd1+ {[%emt 0:07:56]} 46. Kh2 {[%emt 0:00:16]} Qd6+ {[%emt 0:00:20]} 47. Ne5 {[%emt 0:05:43]} Rf4 {[%emt 0:06:32]} 48. Qxe6 {[%emt 0:00:08]} Qxe6 {[%emt 0:00:16]} 49. Rxe6 {[%emt 0:00:01]} Rxf2 {[%emt 0:00:12]} 50. Rg6 {[%emt 0:00:33] Weighted Error Value: White=0.24 (precise) /Black=0.37  Loses game:     	---       	Black=3      Mistake:       	White=4     	Black=2      Inaccurate:     	White=3     	Black=3      OK:         	White=13    	Black=16     Best:        	White=5     	Black=2      Strong:       	White=2     	Black=1} 1-0

[Event "4NCL Div 2 2024-25"]
[Site "England"]
[Date "2025.02.15"]
[Round "5.14"]
[White "Patel, Keatan"]
[Black "Tompson, John C"]
[Result "1-0"]
[Annotator "TA"]
[ECO "C77"]
[WhiteElo "1973"]
[BlackElo "2124"]
[PlyCount "50"]
[EventDate "2024.11.23"]
[EventType "team-tourn"]
[EventCountry "ENG"]
[SourceTitle "playchess.com"]
[Source "ChessBase"]
[SourceQuality "1"]
[TimeControl "40/6000+30:3000+30"]

{[%evp 12,50,16,8,14,20,22,18,25,13,20,15,30,27,25,24,37,43,42,18,29,33,37,44,48,56,99,91,134,74,118,109,183,184,203,196,200,124,149,146,154]} 1. e4 {[%emt 0:10:11]} e5 {[%emt 0:10:10]} 2. Nf3 {[%emt 0:00:14]} Nc6 {[%emt 0:00:11]} 3. Bb5 {[%emt 0:01:04]} a6 {[%emt 0:00:08]} 4. Ba4 {[%emt 0:00:05]} Nf6 {[%emt 0:00:06]} 5. d3 {[%emt 0:00:16][%cal Bd2d3,Bd3d4][%mdl 32]} b5 {[%emt 0:00:20]} 6. Bb3 {[%emt 0:00:06]} Bc5 {[%emt 0:00:12]} 7. Nc3 {[%emt 0:00:10] 7.c3 gains popularity.} h6 {[%emt 0:00:58] C77: Ruy Lopez: 3...a6 4 Ba4 Nf6, unusual lines.} 8. Nd5 {[%emt 0:00:15]} d6 {[%emt 0:00:36]} 9. c3 {[%emt 0:00:08]} Rb8 {[%emt 0:01:13] The position is equal.} 10. d4 {[%emt 0:17:25]} Ba7 {[%emt 0:01:24]} 11. Be3 {[%emt 0:00:33] [#] Black must now prevent dxe5.} Nxd5 {[%emt 0:04:20]} 12. Bxd5 {[%emt 0:13:31]} Bd7 {[%emt 0:09:29]} 13. O-O $146 {[%emt 0:04:03]} ({Predecessor:} 13. Qd2 Qe7 14. O-O exd4 15. cxd4 Nd8 16. Rfe1 Bg4 17. e5 Kf8 18. Bf4 Ne6 19. exd6 cxd6 {1-0 Gourlay,I (2295)-Durak,C (2350) London Mindsports IM-B 2023 (1)}) 13... O-O {[%emt 0:44:39]} 14. Qd2 {[%emt 0:04:36][%cal Oe3h6]} exd4 {[%emt 0:16:43] [#]} 15. Bxh6 {[%emt 0:10:12]} dxc3 {[%emt 0:04:22]} (15... Ne5 {keeps more tension.} 16. Bg5 dxc3 17. Bxd8 cxd2 18. Bxc7 Rbc8) 16. Qxc3 {[%emt 0:00:09] A sharp opening} gxh6 {[%emt 0:01:18]} 17. Bxc6 {[%emt 0:00:09]} Bxc6 {[%emt 0:08:21]} 18. Qxc6 {[%emt 0:00:09]} Rb6 {[%emt 0:00:44]} 19. Qc1 {[%emt 0:06:25]} Kh7 {[%emt 0:03:35]} 20. Qf4 {[%emt 0:02:39]} (20. Qc2 $142) 20... Qe7 {[%emt 0:00:57]} 21. Rac1 {[%emt 0:03:10]} c5 {[%emt 0:00:38][%csl Od6,Of7,Oh6] Black has weak pawns} (21... Rbb8 $16 {was necessary.}) 22. Rfd1 $18 {[%emt 0:02:06][%csl Od6][%cal Bf1d1,Bd1d5,Bd5h5][%mdl 32] White attacks a weakness} Bb8 {[%emt 0:00:33]} 23. Rd5 {[%emt 0:00:24]} Rg8 {[%emt 0:00:29]} 24. Rh5 {[%emt 0:02:26][%csl Gh5][%cal Rf4h6]} Rg6 {[%emt 0:00:22]} 25. Nh4 {[%emt 0:01:57] White has more active pieces.} d5 {[%emt 0:00:00] Weighted Error Value: White=0.13 (very precise) /Black=0.17 (very precise)   Mistake:       	White=1     	Black=1      Inaccurate:     	White=1     	Black=3      OK:         	White=8     	Black=6      Best:        	---       	Black=1} 1-0

[Event "4NCL Div 2 2024-25"]
[Site "England"]
[Date "2025.02.15"]
[Round "5.15"]
[White "Pedersen, Carsten"]
[Black "Baer, Bruce L"]
[Result "1/2-1/2"]
[Annotator "TA"]
[ECO "B06"]
[WhiteElo "2029"]
[BlackElo "1962"]
[PlyCount "88"]
[EventDate "2024.11.23"]
[EventType "team-tourn"]
[EventCountry "ENG"]
[SourceTitle "playchess.com"]
[Source "ChessBase"]
[SourceQuality "1"]
[TimeControl "40/6000+30:3000+30"]

{[%evp 9,88,62,62,41,31,36,26,14,20,-8,33,29,36,36,60,4,50,0,3,0,0,-63,-59,-69,-88,-78,-87,-75,-77,-83,-57,-61,-61,-61,-60,-58,-61,-48,-55,-54,-8,-58,-46,-84,-48,-97,-84,-84,-84,-111,-84,-84,-84,-84,-84,-84,-84,-84,-84,-84,-84,-84,-84,-84,-84,-84,-84,-84,-84,-84,-84,-84,-84,-84,-84,-84,-84,-84,-84,-84,-84]} 1. e4 {[%emt 0:10:03]} g6 {[%emt 0:16:28]} 2. d4 {[%emt 0:00:07]} Bg7 {[%emt 0:00:07]} 3. Nc3 {[%emt 0:00:34]} a6 {[%emt 0:00:04]} 4. g3 {[%emt 0:00:57]} b5 {[%emt 0:00:25]} 5. Bg2 {[%emt 0:00:06]} Bb7 {[%emt 0:00:07]} 6. h4 $146 {[%emt 0:02:25] B06: Modern Defence.} ({Predecessor:} 6. a3 d6 7. Nge2 Nd7 8. O-O c5 9. Be3 Rc8 10. dxc5 Nxc5 11. Bd4 Bxd4 12. Nxd4 {0-1 Woodward,A (2544)-Nakamura,H (2802) Titled Tuesday intern op 04th Feb Early blitz 2025 (9)}) 6... Nf6 {[%emt 0:04:10]} 7. Bf3 {[%emt 0:05:14]} d5 $1 {[%emt 0:05:22]} 8. e5 {[%emt 0:07:58] White has an edge.} Ne4 {[%emt 0:01:53]} 9. Qe2 {[%cal Rc3e4]} Nc6 {[%emt 0:17:30][%cal Bb8c6,Bc6a5,Ba5c4][%mdl 32]} 10. Be3 {[%emt 0:07:15]} Nxc3 {[%emt 0:03:22]} 11. bxc3 {[%emt 0:00:07]} Na5 {[%emt 0:00:38] [#]} 12. e6 {[%emt 0:22:32]} f5 {[%emt 0:12:07]} (12... fxe6 $11 13. Bf4 c5) 13. Bf4 (13. Nh3 $14) 13... Nc4 $11 {[%emt 0:07:43][%cal Oc7c5]} 14. h5 {[%emt 0:07:55]} c5 15. hxg6 {[%emt 0:11:35]} (15. Rd1 $11) 15... Qa5 $1 $15 {[%emt 0:03:49]} 16. Bd2 (16. gxh7 $2 Qxc3+ (16... cxd4 $2 17. Kf1 $16) 17. Kf1 Qxa1+ $19) 16... hxg6 {[%emt 0:18:05]} 17. Rxh8+ {[%emt 0:20:57]} Bxh8 {[%emt 0:00:02]} 18. Bh5 {[%emt 0:00:12]} O-O-O {[%emt 0:00:11]} (18... gxh5 19. Qxh5+ Kd8 20. Qxh8+ Kc7 21. Qh7 $18) (18... cxd4 19. cxd4 (19. Bxg6+ Kd8 $11) 19... Qb6 20. Bxg6+ Kd8 21. Bxf5 Qxd4 22. Rd1 Nxd2 23. Rxd2 $16) 19. Bxg6 {[%emt 0:00:14][%csl Oc4] Strong Square Black (c4)} Nxd2 {[%emt 0:07:21]} (19... f4 {keeps more tension.} 20. g4 cxd4 21. cxd4 Qb6) 20. Qxd2 {[%emt 0:00:25]} cxd4 {[%emt 0:00:05]} 21. cxd4 {[%emt 0:01:39]} Qxd2+ {[%emt 0:04:47]} 22. Kxd2 {[%emt 0:00:02][%cal Og1f3] aiming for Nf3!.} Bxd4 {[%emt 0:00:07]} 23. Rf1 {[%emt 0:00:08]} Rf8 $1 {[%emt 0:00:32]} 24. Ne2 {[%emt 0:00:57]} Be5 {[%emt 0:01:16]} (24... Bc5 $15) 25. c3 {[%emt 0:02:01]} (25. f4 $11 Bd6 26. Rh1) 25... Kc7 {[%emt 0:01:09]} 26. f4 {[%emt 0:02:31]} Bh8 {[%emt 0:00:59]} 27. Nd4 {[%emt 0:03:25]} (27. Rf2 $15 {should be considered.}) 27... Bxd4 {[%emt 0:00:41] Black is better.} 28. cxd4 $17 {[%emt 0:00:02][%mdl 4096] Endgame KRB-KRB} Kd6 {[%emt 0:00:37]} 29. Bf7 {[%emt 0:03:47]} Rh8 {[%emt 0:00:02]} 30. Re1 {[%emt 0:00:45]} Rh2+ {[%emt 0:00:59]} 31. Re2 {[%emt 0:00:07]} Rxe2+ {[%emt 0:00:14]} 32. Kxe2 {[%emt 0:00:07] [#] KB-KB} Bc8 $1 {[%emt 0:00:01]} 33. a3 {[%emt 0:01:55]} Bxe6 {[%emt 0:00:05]} 34. Bg6 {[%emt 0:00:04]} Bd7 {[%emt 0:04:11]} 35. Kd3 {[%emt 0:00:06]} e6 {[%emt 0:00:30]} 36. Kc3 {[%emt 0:00:24]} a5 {[%emt 0:00:02]} 37. Bh5 {[%emt 0:00:20]} Ke7 {[%emt 0:01:05]} 38. Be2 {[%emt 0:00:14]} Kf6 {[%emt 0:00:36]} 39. Bh5 {[%emt 0:00:26]} Kg7 {[%emt 0:00:15]} 40. Kb3 {[%emt 0:01:03]} Kf8 {[%emt 0:00:41]} 41. Kc3 {[%emt 0:50:33]} Be8 {[%emt 0:50:04]} 42. Be2 {[%emt 0:00:27]} Kg7 {[%emt 0:00:07]} 43. Bf3 {[%emt 0:00:21]} Kh6 {[%emt 0:00:09]} 44. Be2 {[%emt 0:00:17]} Bd7 {[%emt 0:03:11] Weighted Error Value: White=0.14 (very precise) /Black=0.08 (flawless)   Mistake:       	White=5     	Black=2      Inaccurate:     	White=3     	Black=3      OK:         	White=17    	Black=14     Best:        	White=2     	Black=4      Strong:       	---       	Black=4} 1/2-1/2

[Event "4NCL Div 2 2024-25"]
[Site "England"]
[Date "2025.02.15"]
[Round "5.16"]
[White "Sandhu, Manvith"]
[Black "Serbanescu, Diana-Maria"]
[Result "0-1"]
[Annotator "TA"]
[ECO "C77"]
[WhiteElo "1978"]
[BlackElo "1992"]
[PlyCount "80"]
[EventDate "2024.11.23"]
[EventType "team-tourn"]
[EventCountry "ENG"]
[SourceTitle "playchess.com"]
[Source "ChessBase"]
[SourceQuality "1"]
[TimeControl "40/6000+30:3000+30"]

{[%evp 14,80,20,25,29,21,28,22,29,20,24,24,22,0,0,-3,0,-43,-27,-50,-47,-132,-123,-124,-130,-122,-126,-128,-142,-139,-143,-136,-121,-242,-231,-218,-219,-29989,-29990,-29990,-762,-698,-66,-1044,-512,-513,-497,-527,-530,-510,-503,-601,-513,-865,-866,-832,-838,-1322,-819,-866,-869,-1699,-2284,-2074,-1678,-1565,-1683,-2099,-2123]} 1. e4 {[%emt 0:10:04]} e5 {[%emt 0:10:07]} 2. Nf3 {[%emt 0:00:05]} Nc6 {[%emt 0:00:05]} 3. Bb5 {[%emt 0:00:05]} a6 {[%emt 0:00:11]} 4. Ba4 {[%emt 0:00:11]} Nf6 {[%emt 0:00:40]} 5. d3 {[%emt 0:00:07]} d6 {[%emt 0:01:11]} 6. c3 {[%emt 0:00:07]} g6 {[%emt 0:01:46]} 7. O-O {[%emt 0:00:27]} Bg7 {[%emt 0:00:08]} 8. Re1 {[%emt 0:00:49]} b5 {[%emt 0:01:21] C77: Ruy Lopez: 3...a6 4 Ba4 Nf6, unusual lines.} 9. Bc2 {[%emt 0:00:08]} a5 $146 {[%emt 0:04:55]} ({Predecessor:} 9... O-O 10. Bg5 h6 11. Bh4 Re8 12. Nbd2 Bb7 13. a4 Qb8 14. b4 Bc8 15. Nf1 Be6 16. Ne3 {1-0 Rublevsky,S (2688)-Yemelin,V (2588) RUS-chT 20th 2013 (3)}) 10. a4 {[%emt 0:03:14]} b4 {[%emt 0:01:48] The position is equal.} 11. Nbd2 {[%emt 0:01:45]} O-O {[%emt 0:04:06]} 12. Nb3 {[%emt 0:06:34]} Re8 {[%emt 0:09:18]} 13. d4 {[%emt 0:06:53]} bxc3 {[%emt 0:02:11]} 14. bxc3 {[%emt 0:00:13]} exd4 {[%emt 0:02:02]} 15. cxd4 Nb4 {[%emt 0:09:11]} 16. Bb1 {[%emt 0:19:32]} Bb7 {[%emt 0:05:38]} 17. Bd2 {[%emt 0:02:28]} (17. d5 $15) 17... Nxe4 $17 {[%emt 0:04:02]} (17... Bxe4 18. Nxa5 Qb8 19. Nc4 $11) 18. Bxe4 {[%emt 0:08:10]} Bxe4 {[%emt 0:02:29]} 19. Nxa5 Bxf3 {[%emt 0:07:29]} 20. Qxf3 {[%emt 0:19:25]} Nc2 {[%emt 0:05:20]} (20... Rxa5 21. Bxb4 Rxe1+ 22. Bxe1 Bxd4 23. Bxa5 $15) 21. Rxe8+ {[%emt 0:00:26]} Qxe8 {[%emt 0:00:07]} 22. Rb1 {[%emt 0:04:57]} Nxd4 {[%emt 0:01:03]} ({Don't play} 22... Bxd4 23. Rc1 Bb6 24. Nb3 $11) 23. Qd5 {[%emt 0:03:47]} (23. Qb7 $17) 23... Rb8 $19 {[%emt 0:04:08]} 24. Rxb8 {[%emt 0:05:04]} Qxb8 $40 {[%emt 0:00:15][%mdl 128] Black goes for the king.} 25. h3 $2 {[%emt 0:00:06] [#]} (25. g3 $19) 25... Qb1+ {[%emt 0:10:18]} 26. Kh2 {[%emt 0:00:05]} Be5+ {[%emt 0:02:10]} (26... Ne2 $142 27. h4 Qg1+ 28. Kh3 Qxf2 29. Qa8+ Bf8 30. Be1 Qxe1 31. Qf3 Qh1+ (31... Qxa5 $2 32. Qxe2 Qxa4 33. h5 $19) (31... Ng1+ $2 32. Kh2 $19) 32. Kg4 f5+ 33. Kg5 Be7+ 34. Kh6 Qxh4+ 35. Qh5 Qxh5#) 27. g3 {[%emt 0:04:16]} Qd3 $2 {[%emt 0:03:59]} ({Black should play} 27... Qf1 $19 28. Qg2 Qd1 29. Qa8+ Kg7 30. Bh6+ Kxh6 31. Qf8+ Bg7 32. Qxf7 Qxa4) 28. Qa8+ $2 {[%emt 0:01:56][%mdl 8192] This move loses the game for White.} (28. Be3 $15 Qc3 29. Kg2) 28... Kg7 {[%emt 0:01:53] Black is clearly winning. Active counter play!} 29. Be3 {[%emt 0:00:07]} Nf5 {[%emt 0:01:19]} 30. Qf3 {[%emt 0:01:14][%cal Oe3h6] [#] And now Bh6+! would win.} Bxg3+ $1 {[%emt 0:03:46][%mdl 512]} 31. fxg3 {[%emt 0:01:59]} Nxe3 {[%emt 0:00:40][%mdl 4096] Endgame KQN-KQN. Black is two pawns up.} (31... Qxe3 $2 32. Qxe3 Nxe3 33. Nc6 $19) 32. Qf2 {[%emt 0:03:23]} Qd4 {[%emt 0:03:49][%cal Oe3g4]} 33. Qa2 {[%emt 0:04:08]} (33. Qe2 $142) 33... Nf1+ {[%emt 0:01:28]} 34. Kg2 {[%emt 0:00:44]} Nd2 {[%emt 0:00:21] Strongly threatening ...Qe4+.} 35. Nb3 {[%emt 0:02:15]} Qd5+ {[%emt 0:00:51]} 36. Kh2 {[%emt 0:00:29]} Nxb3 {[%emt 0:00:39]} 37. a5 {[%emt 0:00:06]} Qxa5 {[%emt 0:00:45]} 38. Qxb3 {[%emt 0:00:08]} Qd2+ {[%emt 0:00:10]} 39. Kg1 {[%emt 0:00:07]} Qd4+ {[%emt 0:00:07]} 40. Kg2 {[%emt 0:00:11]} c5 {[%emt 0:00:05] Weighted Error Value: White=0.98/Black=0.53  Mistake:       	White=4     	---        Inaccurate:     	White=1     	---        OK:         	White=8     	Black=12     Best:        	White=2     	Black=3} 0-1

[Event "4NCL Div 2 2024-25"]
[Site "England"]
[Date "2025.02.15"]
[Round "5.17"]
[White "Ashton, Adam G"]
[Black "Sucikova, Svetlana"]
[Result "1-0"]
[Annotator "ChessBase"]
[ECO "A14"]
[WhiteElo "2285"]
[BlackElo "2169"]
[PlyCount "99"]
[EventDate "2024.11.23"]
[EventType "team-tourn"]
[EventCountry "ENG"]
[SourceTitle "playchess.com"]
[Source "ChessBase"]
[SourceQuality "1"]
[TimeControl "40/6000+30:3000+30"]

1. c4 {[%emt 0:25:11]} e6 {[%emt 0:11:14]} 2. Nf3 {[%emt 0:01:52]} Nf6 {[%emt 0:00:57]} 3. g3 {[%emt 0:01:32]} b6 {[%emt 0:03:45]} 4. Bg2 {[%emt 0:02:12]} Bb7 {[%emt 0:00:15]} 5. O-O {[%emt 0:01:02]} c5 {[%emt 0:00:37]} 6. b3 {[%emt 0:04:01]} Be7 {[%emt 0:00:54]} 7. Bb2 {[%emt 0:00:06]} O-O {[%emt 0:01:45]} 8. e3 {[%emt 0:01:46]} d5 {[%emt 0:05:44]} 9. Qe2 {[%emt 0:00:40]} Nbd7 {[%emt 0:01:40]} 10. Rd1 {[%emt 0:06:43]} Qc7 {[%emt 0:02:37]} 11. Nc3 {[%emt 0:02:44]} Rac8 {[%emt 0:00:33]} 12. Rac1 {[%emt 0:03:26]} Qb8 {[%emt 0:01:55]} 13. d3 {[%emt 0:09:17]} Rfd8 {[%emt 0:07:03]} 14. Ne1 {[%emt 0:09:18]} a6 {[%emt 0:13:09]} 15. cxd5 {[%emt 0:08:56]} exd5 {[%emt 0:01:38]} 16. d4 {[%emt 0:02:31]} Qa8 {[%emt 0:11:46]} 17. Nd3 {[%emt 0:01:56]} c4 18. Ne5 {[%emt 0:07:03]} b5 {[%emt 0:02:59]} 19. Nxd7 {[%emt 0:01:22]} Nxd7 {[%emt 0:00:51]} 20. bxc4 {[%emt 0:06:04]} dxc4 {[%emt 0:02:25]} 21. e4 {[%emt 0:00:06]} Nb6 {[%emt 0:03:22]} 22. a3 {[%emt 0:00:19]} Bf6 {[%emt 0:05:09]} 23. d5 {[%emt 0:00:58]} Re8 {[%emt 0:00:50]} 24. Qd2 {[%emt 0:00:54]} Nd7 25. d6 {[%emt 0:04:00]} Rcd8 {[%emt 0:02:35]} 26. f4 {[%emt 0:01:44]} Qa7+ {[%emt 0:04:52]} 27. Kh1 {[%emt 0:00:28]} Bxc3 {[%emt 0:01:49]} 28. Qxc3 {[%emt 0:01:09]} Nf6 {[%emt 0:00:10]} 29. e5 {[%emt 0:01:34]} Ng4 {[%emt 0:05:20]} 30. Qd4 {[%emt 0:01:43]} Bxg2+ {[%emt 0:00:56]} 31. Kxg2 {[%emt 0:00:02]} Qb7+ {[%emt 0:04:19]} 32. Kg1 {[%emt 0:00:02]} Qf3 {[%emt 0:00:08]} 33. Rc3 {[%emt 0:01:09]} Qe2 {[%emt 0:01:18]} 34. Qd2 {[%emt 0:00:31]} Qe4 {[%emt 0:02:20]} 35. h3 {[%emt 0:00:54]} Nh6 {[%emt 0:00:10]} 36. Re3 {[%emt 0:00:26]} Qc6 {[%emt 0:00:35]} 37. g4 {[%emt 0:00:18]} Qb6 {[%emt 0:03:41]} 38. Kh2 {[%emt 0:00:34]} a5 {[%emt 0:00:30]} 39. Bd4 {[%emt 0:00:56]} Qa6 {[%emt 0:01:33]} 40. Bc3 {[%emt 0:00:24]} Ra8 {[%emt 0:03:36]} 41. f5 Reb8 {[%emt 0:26:28]} 42. e6 {[%emt 0:27:16]} b4 {[%emt 0:01:31]} 43. d7 {[%emt 0:03:08]} Qb6 {[%emt 0:01:49]} 44. e7 {[%emt 0:00:53]} Kh8 {[%emt 0:09:42]} 45. d8=Q+ {[%emt 0:02:00]} Rxd8 {[%emt 0:01:12]} 46. exd8=Q+ {[%emt 0:00:10]} Rxd8 {[%emt 0:00:09]} 47. Qxd8+ {[%emt 0:00:05]} Qxd8 {[%emt 0:00:08]} 48. Rxd8+ {[%emt 0:00:03]} Ng8 {[%emt 0:00:13]} 49. Rxg8+ {[%emt 0:00:06]} Kxg8 {[%emt 0:00:06]} 50. Re8# {[%emt 0:00:05]} 1-0

[Event "4NCL Div 2 2024-25"]
[Site "England"]
[Date "2025.02.15"]
[Round "5.18"]
[White "Chan, Sheng Liang Bernard"]
[Black "Longson, Alexander"]
[Result "0-1"]
[Annotator "ChessBase"]
[ECO "D00"]
[WhiteElo "2101"]
[BlackElo "2250"]
[PlyCount "60"]
[EventDate "2024.11.23"]
[EventType "team-tourn"]
[EventCountry "ENG"]
[SourceTitle "playchess.com"]
[Source "ChessBase"]
[SourceQuality "1"]
[TimeControl "40/6000+30:3000+30"]

1. d4 {[%emt 0:10:13]} d5 {[%emt 0:10:08]} 2. Bf4 {[%emt 0:00:24]} Nf6 {[%emt 0:00:12]} 3. e3 {[%emt 0:00:20]} c5 {[%emt 0:00:22]} 4. c3 {[%emt 0:00:18]} Nc6 {[%emt 0:00:23]} 5. Nd2 {[%emt 0:00:21]} Bf5 {[%emt 0:01:01]} 6. Qb3 {[%emt 0:00:40]} Qd7 {[%emt 0:00:24]} 7. Ngf3 {[%emt 0:00:10]} c4 {[%emt 0:01:24]} 8. Qd1 {[%emt 0:00:08]} e6 {[%emt 0:00:36]} 9. Be2 {[%emt 0:00:08]} Be7 {[%emt 0:04:01]} 10. Nh4 {[%emt 0:08:31]} O-O {[%emt 0:03:37]} 11. O-O {[%emt 0:02:32]} b5 {[%emt 0:03:53]} 12. Nxf5 {[%emt 0:05:58]} exf5 {[%emt 0:00:07]} 13. b3 {[%emt 0:01:24]} h6 {[%emt 0:09:18]} 14. a4 {[%emt 0:03:51]} a6 {[%emt 0:03:08]} 15. Qc2 {[%emt 0:09:11]} Ne4 {[%emt 0:10:09]} 16. bxc4 {[%emt 0:07:55]} bxc4 {[%emt 0:06:05]} 17. f3 {[%emt 0:02:36]} Nxd2 {[%emt 0:04:13]} 18. Qxd2 Bd6 {[%emt 0:16:38]} 19. e4 {[%emt 0:02:48]} Na5 {[%emt 0:09:08]} 20. Bxd6 {[%emt 0:04:47]} Qxd6 {[%emt 0:00:47]} 21. exd5 {[%emt 0:12:08]} Nb3 {[%emt 0:01:38]} 22. Qa2 {[%emt 0:00:06]} Nxa1 {[%emt 0:02:58]} 23. Rxa1 {[%emt 0:00:06]} Rfc8 {[%emt 0:07:15]} 24. Re1 {[%emt 0:05:14]} Ra7 {[%emt 0:04:41]} 25. Bf1 Re7 {[%emt 0:01:17]} 26. Rxe7 {[%emt 0:13:58]} Qxe7 {[%emt 0:00:03]} 27. Bxc4 {[%emt 0:00:20]} Qe3+ {[%emt 0:01:58]} 28. Kf1 {[%emt 0:01:37]} Qxc3 {[%emt 0:00:12]} 29. Be2 {[%emt 0:02:13]} f4 {[%emt 0:03:05]} 30. Qb1 {[%emt 0:03:06]} Qd2 {[%emt 0:01:22]} 0-1